bitfinex/quotes_ETHUSD_20250715
["timestamp","ask_amount","ask_price","bid_price","bid_amount"]
[1752606253487,0.4604,3074.1,3073.7,0.03253407]
[1752606253668,0.4604,3074.1,3073.8,3.25329174]
[1752606253868,0.4604,3074.1,3073.9,5.21]
[1752606255498,0.4604,3074.1,3073.9,8.4631896]
[1752606255796,0.4604,3074.1,3073.9,5.21]
[1752606257095,0.4604,3074.1,3073.7,3.25335342]
[1752606257262,0.4604,3074.1,3073.8,5.21]
[1752606257797,0.03248457,3074.1,3073.8,5.21]
[1752606258003,0.4583,3074.0,3073.8,5.21]
[1752606258315,4.85052649,3074.3,3073.9,5.209]
[1752606258525,3.71267027,3074.2,3073.6,3.25346415]
[1752606258738,0.8197,3074.0,3073.2,0.24062394]
[1752606259028,3.25332421,3073.8,3073.3,5.209]
[1752606259183,0.86519545,3073.7,3073.3,5.209]
[1752606259388,7.07342551,3073.4,3073.3,5.209]
[1752606259624,3.25389584,3073.3,3073.1,5.209]
[1752606259829,3.8197,3073.4,3073.1,5.209]
[1752606260031,0.8197,3073.4,3073.1,8.46300547]
[1752606260213,7.5313474,3073.8,3073.2,3.25389222]
[1752606260417,7.53130358,3073.8,3073.1,8.46303271]
[1752606260615,4.07302334,3073.8,3073.3,3.25376666]
[1752606260816,4.07302334,3073.8,3073.4,5.209]
[1752606260817,3.0,3073.6,3073.4,5.209]
[1752606261120,3.0,3073.7,3073.4,5.209]
[1752606261327,4.278,3073.8,3073.4,5.209]
[1752606261634,0.4583,3073.7,3073.4,5.209]
[1752606261845,6.28609737,3073.6,3073.5,5.209]
[1752606261996,6.74439737,3073.6,3073.5,5.209]
[1752606263424,3.49078457,3073.6,3073.5,5.209]
[1752606264031,6.74429836,3073.6,3073.5,5.209]
[1752606265190,3.25363584,3073.5,3073.4,5.209]
[1752606265391,3.25383749,3073.3,3073.0,0.002]
[1752606265641,3.25393726,3073.2,3073.1,5.209]
[1752606265988,0.4583,3073.2,3073.1,5.209]
[1752606266229,3.0,3074.0,3073.5,3.25361851]
[1752606266407,3.25309651,3074.0,3073.6,5.209]
[1752606266748,0.49078457,3073.9,3073.2,0.03253937]
[1752606266912,0.49078457,3073.9,3073.0,0.03454149]
[1752606267117,3.25390872,3073.3,3073.1,5.209]
[1752606267432,3.25393726,3073.2,3073.1,5.209]
[1752606267746,0.4583,3073.3,3073.1,5.209]
[1752606268290,3.25404314,3073.1,3073.0,0.002]
[1752606268513,0.49078457,3073.2,3073.0,5.211]
[1752606268726,3.71234314,3073.1,3073.0,5.211]
[1752606269241,0.4583,3073.1,3073.0,5.211]
[1752606269534,6.71234314,3073.1,3073.0,5.211]
[1752606269891,3.4583,3073.1,3073.0,5.211]
[1752606270097,6.71234314,3073.1,3073.0,5.211]
[1752606270706,7.71221246,3073.1,3073.0,0.002]
[1752606271135,18.40433567,3073.1,3073.0,0.002]
[1752606271521,19.22113567,3073.1,3073.0,0.002]
[1752606271896,49.22113567,3073.1,3073.0,0.002]
[1752606272311,19.22113567,3073.1,3073.0,0.002]
[1752606273097,4.2751,3073.1,3073.0,0.002]
[1752606273334,3.84928457,3073.1,3073.0,0.002]
[1752606273712,3.03248457,3073.1,3073.0,0.002]
[1752606274149,1.2327,3073.8,3073.0,3.25614904]
[1752606274445,1.2327,3073.8,3073.3,3.25376201]
[1752606274640,0.03248457,3073.8,3073.5,3.25353669]
[1752606274836,0.03248457,3074.0,3073.5,5.209]
[1752606275025,0.001,3074.1,3073.7,3.25340794]
[1752606275506,3.001,3074.1,3073.7,3.25340591]
[1752606275702,0.001,3074.1,3073.8,3.25322136]
[1752606275916,0.001,3074.1,3073.6,3.25351379]
[1752606276124,3.25400709,3074.1,3073.5,5.209]
[1752606276329,0.03248457,3074.0,3073.5,8.46255415]
[1752606276839,0.001,3074.1,3073.6,3.2534368]
[1752606277273,0.001,3074.1,3073.5,6.42766579]
[1752606277552,0.001,3074.1,3074.0,3.25309043]
[1752606277838,0.001,3074.1,3074.0,8.46109043]
[1752606278006,0.001,3074.1,3074.0,8.93139043]
[1752606278202,0.001,3074.1,3074.0,8.46109043]
[1752606278621,0.001,3074.1,3074.0,8.93139043]
[1752606278821,0.001,3074.1,3074.0,10.22968968]
[1752606279761,0.001,3074.1,3074.0,11.03158968]
[1752606280870,0.001,3075.0,3074.9,3.25213828]
[1752606281089,0.001,3075.0,3074.9,8.45913828]
[1752606281289,0.001,3075.0,3074.9,5.207]
[1752606281583,0.001,3075.0,3074.9,8.45913828]
[1752606282496,0.001,3075.0,3074.9,10.17580698]
[1752606282635,0.001,3075.0,3074.5,3.25248718]
[1752606282840,0.001,3075.0,3074.0,5.36526095]
[1752606282841,0.4583,3074.9,3074.0,5.36526095]
[1752606283055,0.4583,3074.9,3074.1,5.206]
[1752606283056,0.03248457,3074.8,3074.1,5.206]
[1752606283269,3.25236037,3074.7,3074.1,8.45892818]
[1752606283450,0.03248457,3074.6,3074.1,8.45892818]
[1752606283653,0.03248457,3074.8,3074.3,3.25271098]
[1752606283881,0.03248457,3074.8,3074.4,5.206]
[1752606284264,0.03248457,3074.8,3074.4,8.45864838]
[1752606284470,0.03248457,3074.8,3074.4,5.206]
[1752606284987,3.71066848,3074.7,3074.4,5.206]
[1752606285559,0.4583,3074.7,3074.4,5.206]
[1752606285937,0.03248457,3074.6,3074.4,5.206]
[1752606287003,0.8316,3074.4,3073.5,3.72389188]
[1752606287147,0.03248457,3074.3,3073.8,5.205]
[1752606287550,0.03248457,3074.3,3073.8,8.4582974]
[1752606288198,0.7816,3074.8,3073.9,0.03253196]
[1752606288397,3.7816,3074.8,3074.3,3.25271744]
[1752606288681,0.50368457,3074.7,3073.8,0.24570155]
[1752606288876,3.25267425,3074.4,3073.9,5.205]
[1752606289049,0.03248457,3074.3,3073.9,8.45818792]
[1752606289377,0.4712,3074.4,3073.9,8.45815637]
[1752606289581,0.03248457,3074.3,3073.7,0.7548]
[1752606289782,3.0,3074.6,3074.1,3.25289821]
[1752606290079,3.7816,3074.8,3074.2,5.205]
[1752606290285,3.7816,3074.8,3073.4,3.25367644]
[1752606290286,3.25316142,3074.0,3073.2,0.4649]
[1752606290449,0.03248457,3073.9,3073.4,3.25366131]
[1752606290880,0.03248457,3073.9,3073.3,5.205]
[1752606290881,0.4712,3073.8,3073.3,5.205]
[1752606291041,0.50368457,3073.7,3073.3,5.205]
[1752606291246,3.72434108,3074.0,3073.4,3.25363264]
[1752606291546,0.03248457,3073.9,3073.4,3.25364417]
[1752606291764,0.50368457,3073.9,3073.4,3.25364417]
[1752606292079,0.50368457,3073.9,3073.4,3.2536917]
[1752606292282,0.50368457,3073.9,3073.3,5.205]
[1752606292690,3.2533538,3073.8,3073.3,5.205]
[1752606292984,0.50368457,3073.8,3073.3,8.45881494]
[1752606293187,0.50368457,3073.8,3073.3,5.205]
[1752606293486,0.50368457,3073.8,3073.3,8.45878106]
[1752606293987,0.50368457,3073.8,3073.1,8.81220703]
[1752606293988,3.0,3073.5,3073.1,7.813]
[1752606294174,3.75748267,3073.4,3073.3,5.204]
[1752606294374,0.7897,3073.6,3073.3,5.204]
[1752606294575,3.0,3073.5,3073.3,5.204]
[1752606294772,6.25362957,3073.5,3073.3,5.204]
[1752606294972,0.7897,3073.6,3073.3,5.204]
[1752606294973,3.25372551,3073.4,3073.3,5.204]
[1752606295146,0.4712,3073.4,3073.3,5.204]
[1752606295350,7.04326031,3073.6,3073.3,5.204]
[1752606295618,3.72483074,3073.5,3073.3,5.204]
[1752606296285,0.4712,3073.5,3073.3,5.204]
[1752606296584,0.4712,3073.4,3073.3,5.204]
[1752606296760,3.72492551,3073.4,3073.3,5.204]
[1752606296966,0.50368457,3073.4,3073.3,5.204]
[1752606297166,0.4712,3073.4,3073.3,5.204]
[1752606297589,3.72492551,3073.4,3073.3,5.204]
[1752606297891,6.25404314,3073.1,3073.0,0.002]
[1752606298093,7.06082771,3073.1,3073.0,5.206]
[1752606298264,7.49954314,3073.1,3073.0,5.206]
[1752606298455,7.49954314,3073.1,3073.0,0.002]
[1752606298857,8.04954314,3073.1,3073.0,0.002]
[1752606300417,38.04954314,3073.1,3073.0,0.002]
[1752606300568,8.04954314,3073.1,3073.0,0.002]
[1752606300966,13.25354314,3073.1,3073.0,0.002]
[1752606302674,43.25354314,3073.1,3073.0,0.002]
[1752606303003,3.25425493,3072.9,3072.8,0.002]
[1752606303299,7.0422395,3072.9,3072.8,0.002]
[1752606303603,7.48095493,3072.9,3072.8,0.002]
[1752606304500,12.68495493,3072.9,3072.8,0.002]
[1752606304873,12.21375493,3072.9,3072.8,0.002]
[1752606305075,7.00975493,3072.9,3072.8,0.002]
[1752606305467,3.0,3072.9,3072.8,0.002]
[1752606306900,7.38660324,3072.9,3072.8,0.002]
[1752606307093,7.35411867,3072.9,3072.8,0.002]
[1752606307497,6.88291867,3072.9,3072.8,0.002]
[1752606309008,3.0,3072.9,3072.8,0.002]
[1752606309303,3.03248457,3072.9,3072.8,0.002]
[1752606311515,0.03248457,3072.9,3072.8,0.002]
[1752606311819,0.001,3073.1,3073.0,4.08354904]
[1752606312110,0.001,3073.1,3073.0,4.54844904]
[1752606312492,0.001,3073.1,3073.0,5.84922681]
[1752606312890,0.001,3073.1,3073.0,5.8817683]
[1752606313612,0.001,3073.1,3073.0,6.4317683]
[1752606314523,3.28536578,3074.2,3073.6,3.25343542]
[1752606314701,3.28536578,3074.2,3073.7,8.45538078]
[1752606314921,3.28536578,3074.2,3073.7,3.25338078]
[1752606315103,0.03248457,3074.2,3073.8,5.202]
[1752606315433,0.03248457,3074.2,3073.8,3.25329954]
[1752606315601,0.03248457,3074.2,3073.9,5.201]
[1752606316434,3.28543758,3074.2,3073.9,5.201]
[1752606317332,3.25352954,3073.6,3073.2,0.7801]
[1752606317535,11.44336911,3073.8,3073.3,5.201]
[1752606317841,3.2541049,3073.1,3072.6,0.7801]
[1752606318019,3.2541049,3073.1,3073.0,5.201]
[1752606318834,14.40357166,3073.4,3073.0,5.201]
[1752606319045,13.94177166,3073.4,3073.0,5.201]
[1752606319338,11.14976911,3073.4,3072.6,0.7801]
[1752606319541,14.40354014,3073.4,3072.9,5.2]
[1752606319739,1.2172,3073.8,3072.9,5.7202]
[1752606319952,3.25353747,3073.6,3073.0,3.6995925]
[1752606320439,3.28612537,3073.5,3073.0,0.4455]
[1752606320831,3.25374629,3073.4,3072.9,8.97440615]
[1752606321029,3.28613999,3073.5,3072.9,8.97440615]
[1752606321229,0.03248457,3073.5,3073.0,3.25412364]
[1752606321435,3.25367924,3073.5,3072.9,8.97440205]
[1752606321614,0.03248457,3073.4,3072.9,8.97440205]
[1752606321814,3.28621333,3073.4,3072.9,8.97440205]
[1752606322315,3.25409606,3073.1,3073.0,5.199]
[1752606323146,0.03248457,3073.2,3073.0,5.199]
[1752606323147,3.28647134,3073.2,3073.0,5.199]
[1752606323442,0.03248457,3073.3,3073.0,5.199]
[1752606323737,3.28639694,3073.3,3072.8,0.002]
[1752606324354,0.03248457,3073.3,3072.8,0.4475]
[1752606324555,3.25378919,3073.4,3072.9,0.4455]
[1752606324761,0.03248457,3073.3,3072.9,0.4455]
[1752606325169,0.03248457,3073.3,3072.9,1.33558459]
[1752606325362,3.28606368,3073.6,3073.0,0.4455]
[1752606325525,0.03248457,3073.6,3073.1,5.199]
[1752606325731,3.25381447,3073.4,3073.1,5.199]
[1752606325968,0.03248457,3073.6,3073.1,5.199]
[1752606326295,3.25367627,3073.5,3073.1,5.199]
[1752606326501,3.25388185,3073.3,3073.1,5.199]
[1752606326798,0.03248457,3073.7,3073.1,5.199]
[1752606326996,3.25356691,3073.6,3073.1,5.199]
[1752606327148,3.28590516,3073.7,3073.1,6.57882184]
[1752606327149,0.03248457,3073.7,3073.1,6.57882184]
[1752606327351,0.03248457,3073.7,3073.3,3.25378877]
[1752606327652,0.03248457,3073.7,3073.2,0.86223937]
[1752606327653,0.03248457,3073.7,3073.2,4.11612818]
[1752606327852,0.03248457,3073.7,3073.3,0.4455]
[1752606328362,0.03248457,3073.7,3073.4,5.198]
[1752606328363,3.25357416,3073.6,3073.4,5.198]
[1752606328555,0.03248457,3073.5,3073.4,5.198]
[1752606328752,0.03248457,3073.5,3072.8,0.002]
[1752606328753,0.7913,3073.4,3072.8,0.002]
[1752606329075,3.25425493,3072.9,3072.8,0.002]
[1752606329282,0.7913,3073.4,3072.8,0.002]
[1752606329451,0.03248457,3073.3,3072.8,3.25630892]
[1752606329649,0.03248457,3073.3,3072.8,4.55049428]
[1752606329884,0.03248457,3073.3,3072.8,1.29618536]
[1752606330389,3.28636831,3073.3,3072.8,1.29618536]
[1752606330601,0.03248457,3073.3,3072.8,4.55054495]
[1752606330894,3.25385734,3073.3,3072.8,2.08368536]
[1752606331050,3.25399804,3073.2,3072.8,1.235]
[1752606331255,0.03248457,3073.3,3072.8,1.235]
[1752606331455,0.03248457,3073.3,3072.8,4.48930599]
[1752606331650,3.28637557,3073.3,3072.8,1.235]
[1752606332086,3.2539469,3073.2,3072.8,1.235]
[1752606332385,3.28636884,3073.3,3072.8,1.235]
[1752606332687,3.25395335,3073.2,3072.8,1.235]
[1752606333060,3.25425493,3072.9,3072.8,0.002]
[1752606333276,3.2867395,3072.9,3072.8,0.002]
[1752606333652,3.7485395,3072.9,3072.8,0.002]
[1752606335090,4.5134395,3072.9,3072.8,0.002]
[1752606336002,4.5134395,3072.9,3071.2,3.25600077]
[1752606336003,5.0634395,3072.9,3071.8,0.8088]
[1752606336159,3.25506697,3072.2,3072.0,5.196]
[1752606336361,0.03248457,3072.1,3072.0,5.196]
[1752606336664,13.94293286,3072.3,3072.0,5.196]
[1752606336665,0.03248457,3072.2,3072.0,5.196]
[1752606336868,0.7649,3072.9,3072.0,5.196]
[1752606337068,3.28651371,3073.2,3072.1,2.1030335]
[1752606337387,0.03248457,3073.4,3072.8,0.7766]
[1752606337588,0.03248457,3073.7,3072.9,5.67304254]
[1752606338179,0.4618,3074.1,3073.0,0.4455]
[1752606338180,0.03248457,3074.0,3073.0,0.4455]
[1752606338494,3.25320719,3073.9,3073.3,3.25377576]
[1752606338692,3.25330715,3073.8,3073.4,5.195]
[1752606338859,0.03248457,3073.8,3073.4,5.195]
[1752606339059,3.25323642,3073.9,3073.4,8.44871601]
[1752606339377,3.25323642,3073.9,3073.4,5.195]
[1752606339583,0.03248457,3073.8,3073.4,5.195]
[1752606340283,3.0,3073.7,3073.4,5.195]
[1752606340482,3.0,3073.7,3073.2,4.03049975]
[1752606340483,3.25342873,3073.7,3073.2,4.03049975]
[1752606340684,0.03248457,3073.6,3073.4,5.195]
[1752606341556,0.03248457,3073.6,3073.2,0.7766]
[1752606341893,0.03248457,3073.6,3072.6,0.4455]
[1752606341894,3.25406527,3073.1,3072.5,4.03110851]
[1752606342095,3.28663874,3073.0,3072.5,0.7765]
[1752606342278,0.03248457,3073.0,3072.6,5.194]
[1752606342697,0.03248457,3073.0,3072.6,8.44856649]
[1752606343695,0.03248457,3073.0,3072.5,0.7765]
[1752606343998,0.03248457,3073.0,3072.1,0.84838248]
[1752606343999,3.25443417,3072.8,3072.4,5.193]
[1752606344295,0.03248457,3072.7,3072.4,5.193]
[1752606345283,0.03248457,3072.8,3072.4,5.6385]
[1752606345780,3.03248457,3072.8,3072.4,5.6385]
[1752606346305,3.25465797,3072.6,3071.9,3.25522768]
[1752606346466,0.03248457,3072.5,3072.0,8.44820116]
[1752606347082,0.03248457,3072.5,3072.1,5.193]
[1752606347569,3.03248457,3072.5,3072.1,5.193]
[1752606347784,0.03248457,3072.5,3072.2,5.192]
[1752606348191,3.25479913,3072.4,3071.8,1.212]
[1752606348371,0.03248457,3072.3,3072.0,3.25520673]
[1752606348564,0.03248457,3072.3,3071.9,8.4482474]
[1752606348789,0.03248457,3072.3,3071.9,5.193]
[1752606349242,0.03248457,3072.3,3071.9,8.44831028]
[1752606349529,0.7599,3072.9,3072.3,3.25489047]
[1752606349736,0.03248457,3072.8,3072.4,5.192]
[1752606350029,3.0,3072.7,3072.4,5.192]
[1752606350230,0.03248457,3072.8,3072.4,5.192]
[1752606350591,3.0,3072.7,3072.4,5.192]
[1752606350926,3.2546786,3072.5,3071.7,0.4573]
[1752606351128,3.0,3072.3,3071.8,4.02183737]
[1752606351353,0.03248457,3072.2,3071.9,5.192]
[1752606351554,0.03248457,3072.4,3071.9,5.192]
[1752606351754,10.68796911,3072.2,3071.8,0.002]
[1752606351931,3.03248457,3072.1,3071.8,0.002]
[1752606352254,3.0,3072.6,3071.9,0.4573]
[1752606352586,0.03248457,3072.6,3072.3,3.25481852]
[1752606352848,3.0,3072.8,3071.9,5.6493]
[1752606352849,0.03248457,3072.7,3072.2,3.25496398]
[1752606353051,0.03248457,3072.7,3072.1,3.71239215]
[1752606353052,3.0,3072.6,3072.1,3.71239215]
[1752606353257,3.03248457,3072.6,3072.2,3.25499589]
[1752606353442,0.794,3073.3,3072.5,0.7875]
[1752606353647,0.794,3073.6,3073.1,3.25398369]
[1752606353858,0.977643,3073.8,3073.2,0.4573]
[1752606354165,0.03248457,3073.7,3073.4,3.2537223]
[1752606354455,0.03248457,3073.7,3073.3,3.25376992]
[1752606354675,0.03248457,3073.7,3073.2,4.4986968]
[1752606354855,3.0,3073.7,3073.2,4.49873145]
[1752606355028,3.0,3073.8,3073.3,0.4573]
[1752606355029,0.03248457,3073.8,3073.3,0.4573]
[1752606355230,0.03248457,3073.8,3073.6,3.25351071]
[1752606355466,0.03248457,3074.0,3073.6,3.25351071]
[1752606355658,0.03248457,3074.0,3073.7,3.25339716]
[1752606355970,0.03248457,3074.1,3073.9,3.25310115]
[1752606356275,0.03248457,3074.4,3074.0,0.4573]
[1752606356471,0.03248457,3074.8,3074.0,0.4573]
[1752606356676,3.25243884,3074.7,3074.1,3.25297161]
[1752606356894,3.25243884,3074.7,3074.0,0.4573]
[1752606356895,3.28495182,3074.6,3074.0,3.71031551]
[1752606357178,3.28495182,3074.6,3074.0,3.71037982]
[1752606357179,0.03248457,3074.6,3074.0,3.71037982]
[1752606357475,0.03248457,3074.6,3074.1,3.25298461]
[1752606357974,0.03248457,3074.6,3073.9,5.191]
[1752606358151,0.03248457,3074.8,3074.2,1.2482]
[1752606358355,0.03248457,3074.8,3074.3,8.44270451]
[1752606358879,3.0,3074.7,3074.3,5.19]
[1752606359084,0.03248457,3074.6,3074.3,5.19]
[1752606359286,0.03248457,3074.8,3074.3,5.19]
[1752606359980,0.03348457,3074.8,3074.3,5.19]
[1752606360183,0.03348457,3074.8,3074.3,0.4573]
[1752606360391,3.25241474,3074.7,3074.2,0.7909]
[1752606360558,3.25287879,3074.2,3074.0,5.188]
[1752606360761,0.03248457,3074.1,3074.0,5.188]
[1752606361082,3.25298461,3074.1,3074.0,5.188]
[1752606361269,0.03248457,3074.2,3073.9,5.188]
[1752606361486,0.03248457,3074.4,3074.0,0.4573]
[1752606361678,3.0,3074.3,3074.0,0.4573]
[1752606361862,3.25285485,3074.3,3073.9,5.188]
[1752606362066,0.03248457,3074.2,3073.9,5.188]
[1752606362379,3.25305499,3074.1,3073.9,5.188]
[1752606362699,4.07869626,3073.9,3073.6,5.188]
[1752606362987,0.03248457,3073.8,3073.6,5.188]
[1752606363374,3.25347864,3073.7,3073.5,5.187]
[1752606363571,0.03248457,3073.6,3073.5,5.187]
[1752606363902,3.28595166,3073.7,3073.5,5.187]
[1752606364075,0.03248457,3073.7,3073.5,5.187]
[1752606364671,0.8255,3073.9,3073.5,5.187]
[1752606364672,3.25351379,3073.6,3073.5,5.187]
[1752606365198,3.25345914,3073.7,3073.3,5.187]
[1752606365504,0.03248457,3073.6,3073.3,5.187]
[1752606365687,0.03248457,3073.6,3073.3,6.61507227]
[1752606365893,0.03248457,3073.8,3073.4,3.71094115]
[1752606366261,0.03248457,3073.8,3073.3,6.15777227]
[1752606366466,0.03248457,3074.1,3073.6,3.25342375]
[1752606366773,0.03248457,3074.2,3073.9,3.25318846]
[1752606366972,0.03248457,3074.4,3074.0,0.4573]
[1752606367172,3.25256391,3074.5,3074.1,5.6433]
[1752606367405,3.28518033,3074.4,3073.9,0.7806]
[1752606367699,3.03248457,3074.4,3074.1,5.186]
[1752606368063,16.31276911,3074.8,3074.1,5.186]
[1752606368064,0.03248457,3074.6,3074.2,3.71016169]
[1752606368262,0.03348457,3074.8,3074.4,3.25266718]
[1752606368687,0.03348457,3074.8,3074.5,3.2524775]
[1752606368884,0.03348457,3074.8,3074.3,1.64731617]
[1752606369086,3.69014982,3074.7,3074.2,5.186]
[1752606369271,0.03248457,3074.6,3074.2,5.6433]
[1752606369472,0.03348457,3074.8,3074.2,5.186]
[1752606369698,0.03348457,3074.8,3074.3,3.25277298]
[1752606369901,3.25257624,3074.5,3074.2,5.186]
[1752606370111,3.25277298,3074.3,3074.2,5.186]
[1752606370327,0.03248457,3074.3,3074.2,5.186]
[1752606370540,3.0,3074.7,3074.2,8.89517879]
[1752606370829,0.03248457,3074.6,3074.2,5.6423]
[1752606371023,0.03248457,3074.6,3074.2,8.89510385]
[1752606371357,0.03348457,3074.8,3074.3,4.51909904]
[1752606371476,0.03348457,3074.8,3074.4,0.4573]
[1752606371680,0.03348457,3074.8,3074.5,3.25253251]
[1752606372122,0.03348457,3074.8,3074.4,3.70991567]
[1752606372325,0.03348457,3074.8,3074.5,3.25248721]
[1752606373119,0.03348457,3074.8,3074.5,3.25251981]
[1752606373534,0.001,3074.8,3074.7,3.25234982]
[1752606374083,0.001,3074.8,3074.7,3.70964982]
[1752606375317,0.001,3074.8,3074.7,4.52707331]
[1752606375830,0.001,3074.8,3074.7,4.77547895]
[1752606376890,0.001,3074.8,3074.7,9.95847895]
[1752606377088,0.001,3074.8,3074.7,11.24704856]
[1752606377322,0.001,3074.8,3074.7,7.99469874]
[1752606377616,0.001,3074.8,3074.7,9.67754982]
[1752606377977,0.001,3074.8,3074.7,9.92549156]
[1752606378501,0.001,3075.0,3074.9,3.25213828]
[1752606378703,0.001,3075.0,3074.9,9.27375966]
[1752606378928,0.001,3075.0,3074.9,9.67903828]
[1752606379149,0.001,3075.0,3074.9,11.05196051]
[1752606380106,0.001,3075.0,3074.9,5.86996051]
[1752606380308,0.001,3075.0,3074.9,11.08448189]
[1752606380508,0.001,3075.0,3074.9,11.05196051]
[1752606381035,0.001,3075.0,3074.9,1.37292223]
[1752606381220,0.001,3075.0,3074.9,8.43313828]
[1752606381543,0.001,3075.0,3074.9,8.87093828]
[1752606381867,0.001,3075.0,3074.9,9.67163828]
[1752606382716,0.001,3075.0,3074.9,4.49063828]
[1752606383016,0.001,3075.0,3074.9,9.70415966]
[1752606383220,0.001,3075.0,3074.9,9.67163828]
[1752606383648,0.001,3075.0,3074.9,10.9888204]
[1752606384842,0.001,3075.0,3074.9,5.8078204]
[1752606385039,0.03248457,3075.8,3075.7,3.25129238]
[1752606385239,3.82188457,3076.0,3075.7,3.25129238]
[1752606385546,7.07293287,3076.0,3075.6,5.18]
[1752606385732,7.4921483,3076.0,3075.6,5.18]
[1752606386044,0.4517,3075.9,3074.9,2.55568212]
[1752606386247,3.25155832,3075.5,3074.9,3.25208178]
[1752606386450,0.03248457,3075.4,3074.9,3.25208178]
[1752606386669,11.13966911,3075.3,3074.0,7.812]
[1752606386956,3.28430558,3075.2,3074.7,3.25231284]
[1752606387122,0.4517,3075.1,3074.8,5.179]
[1752606387526,0.4517,3075.1,3074.8,8.43116551]
[1752606387722,0.03248457,3075.0,3074.8,5.179]
[1752606387949,0.48418457,3075.0,3074.8,5.179]
[1752606388246,1.29888457,3075.0,3074.8,5.179]
[1752606388616,0.84718457,3075.0,3074.8,5.179]
[1752606389153,0.03248457,3075.2,3074.8,5.179]
[1752606389469,0.03248457,3075.2,3074.8,8.43121704]
[1752606389629,0.03248457,3075.2,3074.8,5.179]
[1752606389966,0.48418457,3075.2,3074.9,3.25211953]
[1752606390327,3.2513283,3075.7,3075.0,5.6168]
[1752606390328,0.8147,3075.7,3075.0,5.6168]
[1752606390538,0.4527,3076.0,3075.0,5.6168]
[1752606390539,0.001,3076.0,3075.4,3.25153561]
[1752606390764,0.03348457,3076.0,3075.6,3.25134589]
[1752606391075,0.03348457,3076.0,3075.7,3.25124955]
[1752606391375,0.4517,3075.9,3075.5,5.179]
[1752606391538,0.03248457,3075.8,3075.5,8.43047427]
[1752606391730,0.03248457,3075.8,3074.9,1.16834408]
[1752606391931,0.4517,3075.7,3075.1,3.25192676]
[1752606392132,4.0138568,3075.5,3075.0,5.179]
[1752606392443,0.03248457,3075.4,3075.0,5.179]
[1752606392644,0.4517,3075.3,3075.0,5.179]
[1752606392962,0.48418457,3075.2,3075.0,5.179]
[1752606393525,3.73604176,3075.2,3075.0,5.179]
[1752606393729,0.4517,3075.1,3075.0,5.178]
[1752606394789,0.03248457,3075.3,3075.0,5.178]
[1752606395580,0.4517,3075.2,3075.0,5.178]
[1752606395980,0.4517,3075.2,3074.1,3.25290703]
[1752606395981,3.25213828,3074.9,3074.6,5.177]
[1752606396181,3.25213828,3074.9,3074.3,3.25275677]
[1752606396182,10.68796911,3074.7,3074.0,7.812]
[1752606396337,3.2526334,3074.5,3074.1,5.177]
[1752606396540,0.03248457,3074.4,3074.1,5.177]
[1752606397289,0.03248457,3074.4,3074.1,8.4299791]
[1752606397584,0.03248457,3074.4,3074.1,8.42991663]
[1752606397787,0.03248457,3074.4,3074.2,3.25287404]
[1752606398087,0.48418457,3074.5,3074.1,8.42994303]
[1752606398292,3.2518609,3075.2,3074.1,8.42994303]
[1752606398293,0.7822,3074.9,3074.2,0.4378]
[1752606398438,0.7822,3075.2,3074.8,3.25219317]
[1752606398638,0.7822,3075.2,3074.3,0.8102]
[1752606398639,0.03248457,3075.1,3074.9,5.177]
[1752606398867,0.7822,3075.2,3075.0,5.177]
[1752606399038,0.7822,3075.2,3075.0,8.42896172]
[1752606399255,0.03248457,3075.4,3075.0,8.42896172]
[1752606399446,0.03248457,3075.4,3075.0,5.177]
[1752606400647,0.03248457,3075.4,3075.0,8.42899712]
[1752606400842,0.03248457,3075.4,3075.0,5.177]
[1752606401048,0.03248457,3075.4,3075.0,8.42902429]
[1752606401561,0.03248457,3075.4,3075.2,3.25176295]
[1752606401881,0.81468457,3075.8,3075.3,5.177]
[1752606402044,0.03248457,3075.8,3075.3,5.177]
[1752606402238,0.03348457,3076.0,3075.6,3.25132418]
[1752606402488,0.03348457,3076.0,3075.7,3.2512469]
[1752606402783,0.001,3076.0,3075.6,5.6138]
[1752606403144,0.001,3076.0,3075.9,3.25108098]
[1752606403345,0.001,3076.0,3075.9,8.45959178]
[1752606403550,0.03248457,3076.7,3075.9,5.6138]
[1752606403747,0.03248457,3076.7,3076.2,3.25067172]
[1752606404075,0.03248457,3076.7,3076.3,8.42665281]
[1752606404246,0.03248457,3076.7,3076.3,5.176]
[1752606404651,0.48418457,3076.7,3076.3,5.176]
[1752606405379,3.25034128,3076.6,3076.3,5.176]
[1752606405556,0.03248457,3076.5,3076.3,5.176]
[1752606405756,0.03248457,3076.6,3076.3,5.176]
[1752606405946,0.48418457,3076.6,3076.3,5.176]
[1752606406151,3.48418457,3076.6,3076.3,5.176]
[1752606406348,3.0,3076.9,3076.4,3.25048589]
[1752606406586,0.03248457,3076.8,3076.4,3.28296891]
[1752606406885,0.03248457,3076.8,3076.4,0.03250552]
[1752606407052,0.8329,3077.1,3076.4,0.03250552]
[1752606407053,0.03248457,3077.0,3076.5,3.25040233]
[1752606407255,3.03248457,3077.0,3076.6,5.175]
[1752606407578,6.28242194,3077.0,3076.6,5.175]
[1752606408891,3.03248457,3077.0,3076.6,8.42527855]
[1752606409087,3.03248457,3077.0,3076.7,3.25015115]
[1752606409495,3.03248457,3077.0,3076.6,8.42529505]
[1752606409857,3.03248457,3077.0,3076.6,5.175]
[1752606410660,3.03248457,3077.0,3076.6,8.42530515]
[1752606411064,3.03248457,3077.0,3076.6,5.175]
[1752606411550,6.28241983,3077.0,3076.6,5.175]
[1752606411889,3.46648457,3077.0,3076.5,3.25042003]
[1752606412094,6.71642072,3077.0,3076.6,5.172]
[1752606412708,3.68408066,3076.9,3076.7,5.172]
[1752606412861,0.03248457,3076.8,3076.7,5.172]
[1752606413198,3.25060909,3076.4,3075.7,1.2026]
[1752606413407,0.03248457,3076.3,3075.8,8.42318234]
[1752606413603,0.03248457,3076.3,3076.0,3.25092069]